Cogmind - Beta 12 @@@ ROGUE MODE // 2023.03.18 @ 11:51:18 Player: 3.14 Result: Self-destructed Performance ------------- Evolutions (5) 2500 Regions Visited (14) 2800 Robots Destroyed (137) 685 Value Destroyed (3404) 3404 Prototype IDs (23) 460 Alien Tech Used (0) 0 Bonus (1210) 1210 TOTAL SCORE: 11059 Bonus ------- High Alert Combat Kills 222 Follower Combat Kills 88 Met Data Miner 300 Met Imprinter 300 Was Imprinted 300 Cogmind --------- Core Integrity 915/1000 Matter 217/300 Energy 140/140 System Corruption 3% Temperature Cool (27) Movement Flying (108) Ox1 Location -5/Factory Parts ------- > --- POWER (1) -------- Light Deuterium Engine > --- PROPULSION (5) --- VTOL Module Improved Flight Unit Nuclear Pulse Thruster > --- UTILITY (9) ------ Medium Storage Unit Advanced Sensor Array Experimental Signal Interpreter Improved Utility Shielding Hacking Suite Advanced Hacking Suite Experimental Hacking Suite Advanced System Shield > --- WEAPON (2) ------- CR-A16's Pointy Stick > --- INVENTORY (10) --- Light Nuclear Core VTOL Module Authchip [Device] Hacking Drone Bay (1/1) Peak State ------------ > --- POWER ------------ Light Deuterium Engine > --- PROPULSION ------- VTOL Module VTOL Module VTOL Module Improved Flight Unit Nuclear Pulse Thruster > --- UTILITY ---------- Medium Storage Unit Advanced Sensor Array Advanced Signal Interpreter Experimental Signal Interpreter Improved Utility Shielding Hacking Suite Advanced Hacking Suite Experimental Hacking Suite Advanced System Shield > --- WEAPON ----------- CR-A16's Pointy Stick > --- INVENTORY -------- Light Nuclear Core VTOL Module Experimental Targeting Computer Experimental Target Analyzer Hardened Light Armor Plating Authchip [Device] Hacking Drone Bay Long-range Missile Launcher [Rating: 70] Favorites ----------- Power Ion Engine Engine Ion Engine Power Core Micro Nuclear Core Propulsion Light Treads Treads Light Treads Leg Aluminum Leg Flight Unit Improved Flight Unit Utility Hacking Suite Device Improved Heat Sink Storage Huge Storage Unit Processor Improved Signal Interpreter Hackware Hacking Suite Protection Light Armor Plating Weapon Improved Assault Rifle Energy Cannon Beam Cannon Ballistic Gun Improved Assault Rifle Launcher Mini Grenade Launcher Impact Weapon Power Maul Slashing Weapon Greatsword Piercing Weapon CR-A16's Pointy Stick Special Melee Weapon Improved Datajack Build | -11 -10 -9 -8 -7 -7 -7 -7 -6 -6 -6 -6 -6 -5 -5 ------- Run | Jun Mat Mat Mat Fac Low Low Dat Pro Fac Low Low Zio Pro Fac Slots Evolved 10 | . . 2 2 2 . . . . 2 . . . . 2 Power . | . . . . . . . . . . . . . . . Propulsion 3 | . . 1 1 . . . . . . . . . . 1 Utility 7 | . . 1 1 2 . . . . 2 . . . . 1 Weapon . | . . . . . . . . . . . . . . . Parts Attached 135 | . 13 22 33 13 1 1 . 2 19 2 2 11 3 13 Power 14 | . 2 2 3 1 . 1 . . 1 . . 2 . 2 Engine 8 | . 2 2 2 . . 1 . . . . . . . 1 Core 6 | . . . 1 1 . . . . 1 . . 2 . 1 Reactor . | . . . . . . . . . . . . . . . Propulsion 35 | . 4 7 12 4 . . . . 1 . . . 1 6 Treads 19 | . 2 6 11 . . . . . . . . . . . Leg 2 | . 2 . . . . . . . . . . . . . Wheel . | . . . . . . . . . . . . . . . Hover . | . . . . . . . . . . . . . . . Flight 14 | . . 1 1 4 . . . . 1 . . . 1 6 Utility 40 | . 2 3 6 6 . . . 2 10 . . 7 . 4 Device 12 | . 1 1 2 1 . . . 2 2 . . 2 . 1 Storage 2 | . 1 . . . . . . . . . . 1 . . Processor 6 | . . 1 1 1 . . . . . . . 2 . 1 Hackware 9 | . . . . 3 . . . . 5 . . 1 . . Protection 11 | . . 1 3 1 . . . . 3 . . 1 . 2 Artifact . | . . . . . . . . . . . . . . . Weapon 46 | . 5 10 12 2 1 . . . 7 2 2 2 2 1 Energy Gun . | . . . . . . . . . . . . . . . Energy Cannon 6 | . 3 1 2 . . . . . . . . . . . Ballistic Gun 15 | . 2 7 6 . . . . . . . . . . . Ballistic Cannon . | . . . . . . . . . . . . . . . Launcher 12 | . . 2 4 . 1 . . . 1 1 1 . 1 1 Special Weapon . | . . . . . . . . . . . . . . . Impact Weapon 7 | . . . . 2 . . . . 3 1 1 . . . Slashing Weapon 1 | . . . . . . . . . 1 . . . . . Piercing Weapon 2 | . . . . . . . . . . . . 1 1 . Special Melee Weapon 3 | . . . . . . . . . 2 . . 1 . . Unidentified Prototypes 7 | . . 3 1 . . . . . . . . 3 . . Parts Lost 13 | . . 2 4 . . . . . 1 . . . 3 3 Power 1 | . . . . . . . . . . . . . 1 . Propulsion 4 | . . . . . . . . . . . . . 2 2 Utility 6 | . . 1 4 . . . . . . . . . . 1 Weapon 2 | . . 1 . . . . . . 1 . . . . . Highest Loss Streak 3 | . . 1 1 . . . . . 1 . . . 3 3 To Critical Strikes . | . . . . . . . . . . . . . . . Average Slot Usage (%) 96 | . 99 99 97 83 94 100 100 100 94 100 100 92 92 83 Engine 7 | . 14 11 9 . . 1 7 7 3 . . . . 4 Core 1 | . . . . 5 7 5 . . 2 6 6 6 5 . Treads 17 | . 19 33 36 3 . . . . . . . . . . Leg 2 | . 8 . . . . . . . . . . . . . Flight 10 | . . . . 26 30 30 30 30 26 26 26 26 25 25 Device 8 | . 13 11 7 6 7 7 7 7 5 6 6 6 6 4 Storage 7 | . 14 11 9 1 . . . . . . . 5 6 5 Processor 4 | . . 9 4 6 7 7 7 7 6 6 6 6 6 5 Hackware 9 | . . . . 17 23 23 23 23 26 26 26 26 26 23 Protection 5 | . . 1 13 3 7 7 7 7 9 13 13 3 . 5 Energy Cannon 4 | . 13 5 2 . . . . . . . . . . . Ballistic Gun 9 | . 14 16 15 2 . . . . . . . . . . Impact Weapon 1 | . . . . 5 7 7 7 7 5 5 5 1 . . Special Melee Weapon 1 | . . . . . . . . . 4 6 6 3 5 . Naked Turns . | . . . . . . . . . . . . . . . Heaviest Build 105 | 13 90 98 105 94 15 15 14 14 18 23 18 21 21 26 Greatest Support 80 | 20 40 60 80 80 19 19 19 19 21 21 21 21 21 23 Greatest Overweight (x) 4 | . 4 1 1 1 . . . . . 1 . . . 1 Average Overweight (x) . | . 1 1 1 . . . . . . . . . . . Largest Inventory Capacity 25 | . 25 25 25 25 5 5 5 5 5 5 5 10 10 10 Average Capacity 17 | . 19 25 25 9 5 5 5 5 5 5 5 9 10 10 Most Carried 25 | . 15 25 25 25 5 5 5 5 5 5 5 10 10 10 Average Carried 14 | . 11 23 24 8 4 5 5 5 4 5 5 8 9 6 Final Capacity 25 | 8 25 25 25 5 5 5 5 5 5 5 5 10 10 10 Final Carried 25 | 6 15 25 25 5 5 5 5 5 5 5 5 10 9 4 Class Distribution -------------------- 39% | Scavenger-Mutant 35% | Hacker-Sprinter 22% | Mutant Dominant Class ---------------- Mutant | -10/Materials Scavenger-Mutant | -9/Materials Scavenger-Mutant | -8/Materials Hacker-Sprinter | -7/Factory Hacker-Sprinter | -7/Lower Caves Hacker-Sprinter | -7/Lower Caves Hacker-Sprinter | -7/Data Miner Hacker-Sprinter | -6/Proximity Caves Hacker-Sprinter | -6/Factory Hacker-Sprinter | -6/Lower Caves Hacker-Sprinter | -6/Lower Caves Hacker-Sprinter | -6/Zion Hacker-Sprinter | -5/Proximity Caves Hacker-Sprinter | -5/Factory Resources | -11 -10 -9 -8 -7 -7 -7 -7 -6 -6 -6 -6 -6 -5 -5 ----------- Run | Jun Mat Mat Mat Fac Low Low Dat Pro Fac Low Low Zio Pro Fac Matter Collected 3009 | 185 319 613 1057 145 40 10 . . 108 54 64 158 179 77 Remotely . | . . . . . . . . . . . . . . . Salvage Created 4310 | . 418 1137 1855 200 81 . . . 172 18 72 132 73 152 Parts 291 | . 34 86 127 6 . . . . 14 2 2 1 4 15 Haulers Intercepted 10 | . 2 2 6 . . . . . . . . . . . Recyclers Shooed 2 | . . . 2 . . . . . . . . . . . Parts Field Recycled . | . . . . . . . . . . . . . . . Retrieved Matter . | . . . . . . . . . . . . . . . Parts Self-Destructed 28 | . . . . . 12 . . 6 . 2 3 1 4 . Prevented 4 | . . . . . . . . . . . 1 . 3 . Kills | -11 -10 -9 -8 -7 -7 -7 -7 -6 -6 -6 -6 -6 -5 -5 ------- Run | Jun Mat Mat Mat Fac Low Low Dat Pro Fac Low Low Zio Pro Fac Combat Hostiles Destroyed 92 | . 9 25 37 . 1 . . . 5 4 3 . 2 6 Melee 4 | . . . . . . . . . 2 . . . . 2 Guns 42 | . 2 18 22 . . . . . . . . . . . Cannons 12 | . 7 4 1 . . . . . . . . . . . AOE 33 | . . 3 14 . . . . . 3 4 3 . 2 4 Classes Destroyed 14 | . 5 5 2 . 1 . . . 1 . . . . . Worker 9 | . 1 2 2 2 . . . . 1 . . . . 1 Builder 5 | . . . 1 3 . . . . 1 . . . . . Hauler 10 | . 2 2 6 . . . . . . . . . . . Recycler 7 | . . 2 4 1 . . . . . . . . . . Mechanic 1 | . . 1 . . . . . . . . . . . . Operator 4 | . 1 1 2 . . . . . . . . . . . Watcher 9 | . . 1 2 2 . . . . 3 . . . . 1 Swarmer 44 | . 3 11 14 . 1 . . . 3 4 3 . . 5 Grunt 29 | . 6 8 15 . . . . . . . . . . . Brawler 1 | . . 1 . . . . . . . . . . . . Sentry 12 | . . 5 7 . . . . . . . . . . . Hunter 3 | . . . 1 . . . . . . . . . 2 . Programmer 3 | . . . . . . . . . 2 . . . . 1 Samaritan 2 | . . . . . 1 . . . . . 1 . . . Best Kill Streak 8 | . 3 4 8 3 1 . . . 4 4 3 . 2 7 Combat Bots Only 7 | . 3 4 7 . 1 . . . 3 4 3 . 2 5 Max Kills in Single Turn 5 | . 1 2 5 1 1 . . . 2 2 2 . 2 3 Gunslinging 1 | . . 1 . . . . . . . . . . . . Exploded 4 | . . 2 4 . . . . . 2 2 2 . 2 3 Melee 1 | . . . . . . . . . 1 . . . . 1 Uniques/NPCs Destroyed . | . . . . . . . . . . . . . . . Combat | -11 -10 -9 -8 -7 -7 -7 -7 -6 -6 -6 -6 -6 -5 -5 -------- Run | Jun Mat Mat Mat Fac Low Low Dat Pro Fac Low Low Zio Pro Fac Damage Taken 4014 | . 192 844 1719 . 57 . . 77 394 16 45 . 285 385 Core 654 | . 19 100 198 . . . . . 73 . . . 179 85 Absorbed by Shields . | . . . . . . . . . . . . . . . Redirected to Shielding 12 | . . . . . . . . . . . . . . 12 Regen/Repaired (Parts) 484 | . 111 66 . . . . . . 236 . . . . 71 Core Remaining (%) 83 | 100 92 75 64 . . . . 100 . . . . 70 . Volleys Fired 265 | . 48 83 117 . 3 . . . 2 3 4 . 2 3 Largest 2 | . 2 2 2 . 1 . . . 1 1 1 . 1 1 Hottest 91 | . 80 88 91 . 30 . . . 43 43 43 . 43 43 Shots Fired 499 | . 97 163 222 . 3 . . . 2 3 4 . 2 3 Gun 366 | . 48 126 192 . . . . . . . . . . . Cannon 101 | . 49 34 18 . . . . . . . . . . . Launcher 32 | . . 3 12 . 3 . . . 2 3 4 . 2 3 Special . | . . . . . . . . . . . . . . . Kinetic 366 | . 48 126 192 . . . . . . . . . . . Thermal 101 | . 49 34 18 . . . . . . . . . . . Explosive 32 | . . 3 12 . 3 . . . 2 3 4 . 2 3 Electromagnetic . | . . . . . . . . . . . . . . . Robot Hit Streak 28 | . 8 15 28 . . . . . 8 . . . 10 . Robot Miss Streak 5 | . 5 4 4 . . . . . . . . . . . Penetration Max . | . . . . . . . . . . . . . . . Secondary Targets 6 | . . 2 4 . . . . . . . . . . . Max Gunslinging Chain 1 | . . 1 1 . . . . . . . . . . . Shots Hit Robots 363 | . 52 107 166 9 2 . . . 12 . 1 2 2 10 Core Hits 184 | . 23 46 88 1 . . . . 4 5 4 1 3 9 Critical Kills 1 | . . . 1 . . . . . . . . . . . Critical Parts Destroyed 8 | . . . 1 3 . . . . 4 . . . . . Critical Strikes 11 | . . . 2 3 . . . . 5 . . . . 1 Destroy 2 | . . . 2 . . . . . . . . . . . Smash 7 | . . . . 3 . . . . 4 . . . . . Sever 1 | . . . . . . . . . 1 . . . . . Impale 1 | . . . . . . . . . . . . . . 1 Melee Attacks 87 | . . . . 17 10 2 . . 36 2 3 4 1 12 Impact 67 | . . . . 17 10 2 . . 31 2 3 2 . . Slashing 5 | . . . . . . . . . 5 . . . . . Piercing 15 | . . . . . . . . . . . . 2 1 12 Sneak Attacks 13 | . . . . 7 2 . . . 1 . 1 . . 2 Combat Hostiles 2 | . . . . . 1 . . . . . . . . 1 Follow-up Attacks . | . . . . . . . . . . . . . . . Damage Inflicted 10931 | . 893 1982 3797 812 229 . . . 1152 496 462 210 264 634 Guns 3869 | . 283 1149 2437 . . . . . . . . . . . Cannons 1286 | . 512 516 258 . . . . . . . . . . . Explosions 3228 | . . 299 1070 . . . . . 563 496 333 . 264 203 Melee 2400 | . . . . 812 229 . . . 589 . 129 210 . 431 Ramming 148 | . 98 18 32 . . . . . . . . . . . Kinetic 3869 | . 283 1149 2437 . . . . . . . . . . . Thermal 1286 | . 512 516 258 . . . . . . . . . . . Explosive 3228 | . . 299 1070 . . . . . 563 496 333 . 264 203 Electromagnetic . | . . . . . . . . . . . . . . . Impact 1815 | . . . . 812 229 . . . 435 . 129 210 . . Slashing 154 | . . . . . . . . . 154 . . . . . Piercing 431 | . . . . . . . . . . . . . . 431 Highest Corruption 4 | . 4 . . . . . . . 2 2 2 2 . 3 Average Corruption 3 | . 3 . . . . . . . 1 2 2 2 . 1 Corruption Purged . | . . . . . . . . . . . . . . . Corruption Blocked . | . . . . . . . . . . . . . . . Effects 37 | . 27 . . . . . . . 4 3 2 . . 1 Message Errors 7 | . 6 . . . . . . . . 1 . . . . Matter Fused 14 | . 11 . . . . . . . 2 1 . . . . Heat Flow Errors 6 | . 4 . . . . . . . 1 . . . . 1 Energy Discharges 3 | . 2 . . . . . . . . 1 . . . . Parts Rejected 1 | . 1 . . . . . . . . . . . . . Data Loss (minor) 4 | . 2 . . . . . . . 1 . 1 . . . Data Loss (major) 1 | . . . . . . . . . . . 1 . . . Misfires 1 | . 1 . . . . . . . . . . . . . Overload Shots . | . . . . . . . . . . . . . . . Overflow Damage 1637 | . . 22 8 627 211 . . . 475 48 123 67 . 56 Projectiles 5 | . . 2 3 . . . . . . . . . . . Explosions 262 | . . 20 5 . . . . . 189 48 . . . . Melee 1370 | . . . . 627 211 . . . 286 . 123 67 . 56 Knockbacks 4 | . . . . 1 . . . . 2 . . 1 . . Impact 4 | . . . . 1 . . . . 2 . . 1 . . Kinetic . | . . . . . . . . . . . . . . . Secondary . | . . . . . . . . . . . . . . . Self-Inflicted Damage 175 | . . . 10 . . . . . 94 . . . . 71 Shots 3 | . . . 1 . . . . . 1 . . . . 1 Rammed 15 | . 8 2 5 . . . . . . . . . . . Targets Rammed 23 | . 14 3 6 . . . . . . . . . . . Kicked 6 | . 6 . . . . . . . . . . . . . Crushed 2 | . . 1 1 . . . . . . . . . . . Highest Temperature 250 | . 250 15 47 . 10 2 2 2 222 4 4 . . 180 Average Temperature 19 | . 54 5 9 . 4 1 1 1 81 2 2 . . 106 Received Heat Transfer 906 | . 78 270 522 . 12 . . . 24 . . . . . Siege Activations . | . . . . . . . . . . . . . . . Robots Corrupted . | . . . . . . . . . . . . . . . Combat Hostiles . | . . . . . . . . . . . . . . . Parts Fried 16 | . . . . 10 1 . . . 4 . . 1 . . Impact Corruptions 41 | . . . . 15 9 . . . 13 . 1 3 . . Robots Melted . | . . . . . . . . . . . . . . . Combat Hostiles . | . . . . . . . . . . . . . . . Parts Melted 2 | . . 2 . . . . . . . . . . . . Heat Transferred 2442 | . 1073 962 407 . . . . . . . . . . . Parts Sabotaged . | . . . . . . . . . . . . . . . Parts Stolen . | . . . . . . . . . . . . . . . Parts Stripped . | . . . . . . . . . . . . . . . Power Chain Reactions . | . . . . . . . . . . . . . . . Missiles Intercepted . | . . . . . . . . . . . . . . . Alert | -11 -10 -9 -8 -7 -7 -7 -7 -6 -6 -6 -6 -6 -5 -5 ------- Run | Jun Mat Mat Mat Fac Low Low Dat Pro Fac Low Low Zio Pro Fac Peak Influence 705 | . 318 499 705 432 . . . . 282 . . . . 242 Initial 320 | . . . 155 320 . . . . 18 . . . . 18 Average 223 | . 51 225 422 354 . . . . 125 . . . . 205 Maximum Alert Level 3 | . 1 2 3 2 . . . . 1 . . . . 1 Low Security (%) 50 | . 90 45 12 . . . . . 96 . . . . 9 Level 1 30 | . 9 40 35 81 . . . . 3 . . . . 90 Level 2 17 | . . 13 48 18 . . . . . . . . . . Level 3 1 | . . . 3 . . . . . . . . . . . Level 4 . | . . . . . . . . . . . . . . . Level 5 . | . . . . . . . . . . . . . . . High Security . | . . . . . . . . . . . . . . . Max Security . | . . . . . . . . . . . . . . . Squads Dispatched 13 | . . 1 5 . . . . . 6 . . . . 1 Investigation 5 | . . . 1 . . . . . 4 . . . . . Extermination 3 | . . . . . . . . . 2 . . . . 1 Reinforcement 5 | . . 1 4 . . . . . . . . . . . Assault . | . . . . . . . . . . . . . . . Garrison . | . . . . . . . . . . . . . . . Intercept . | . . . . . . . . . . . . . . . Searches Triggered . | . . . . . . . . . . . . . . . Data Miner Redirects 1 | . . . . . . . . . 1 . . . . . Construction Impeded . | . . . . . . . . . . . . . . . Haulers Reinforced . | . . . . . . . . . . . . . . . Active Scanning Responses . | . . . . . . . . . . . . . . . Cargo Convoy Interrupts . | . . . . . . . . . . . . . . . Stealth | -11 -10 -9 -8 -7 -7 -7 -7 -6 -6 -6 -6 -6 -5 -5 --------- Run | Jun Mat Mat Mat Fac Low Low Dat Pro Fac Low Low Zio Pro Fac Distress Signals 20 | . . 5 . . . . . . 1 . . . 14 . Communications Jammed . | . . . . . . . . . . . . . . . Distress Signals . | . . . . . . . . . . . . . . . Times Spotted 179 | . 37 48 50 2 8 . . 2 13 1 3 . 8 7 Peak Tracking Total 7 | . 5 7 6 2 4 . . 2 4 3 3 . 3 4 Tactical Retreats 14 | . 1 4 1 1 2 . . 1 1 . . . 3 . Traps | -11 -10 -9 -8 -7 -7 -7 -7 -6 -6 -6 -6 -6 -5 -5 ------- Run | Jun Mat Mat Mat Fac Low Low Dat Pro Fac Low Low Zio Pro Fac Traps Triggered 5 | . 3 . . . . . . . 2 . . . . . Indirectly . | . . . . . . . . . . . . . . . Trap Hack Attempts . | . . . . . . . . . . . . . . . Triggered . | . . . . . . . . . . . . . . . Disarmed . | . . . . . . . . . . . . . . . Reprogrammed . | . . . . . . . . . . . . . . . Reused . | . . . . . . . . . . . . . . . Traps Extracted . | . . . . . . . . . . . . . . . Installed . | . . . . . . . . . . . . . . . Triggered 2 | . . . . . . . . . . . 1 . 1 . Machines | -11 -10 -9 -8 -7 -7 -7 -7 -6 -6 -6 -6 -6 -5 -5 ---------- Run | Jun Mat Mat Mat Fac Low Low Dat Pro Fac Low Low Zio Pro Fac Machines Disabled 15 | . 3 3 4 . . . . . 4 . . 1 . . Max in Single Turn 2 | . 1 1 1 . . . . . 2 . . 1 . . Garrison Access 1 | . . . . . . . . . 1 . . . . . Machines Repaired . | . . . . . . . . . . . . . . . Machines Sabotaged . | . . . . . . . . . . . . . . . Overloaded Fab Kills . | . . . . . . . . . . . . . . . Hacking | -11 -10 -9 -8 -7 -7 -7 -7 -6 -6 -6 -6 -6 -5 -5 --------- Run | Jun Mat Mat Mat Fac Low Low Dat Pro Fac Low Low Zio Pro Fac Machines Accessed 26 | . 5 3 2 1 . . 3 . 10 . . . . 2 Terminals 11 | . 4 2 2 . . . . . 3 . . . . . Fabricators 4 | . . . . 1 . . . . 3 . . . . . Repair Stations 5 | . 1 1 . . . . . . 2 . . . . 1 Recycling Units . | . . . . . . . . . . . . . . . Scanalyzers 2 | . . . . . . . . . 1 . . . . 1 Garrison Access 1 | . . . . . . . . . 1 . . . . . Total Hacks 127 | . 17 12 7 2 . . 27 . 38 . . . . 24 Successful 107 | . 10 9 2 1 . . 27 . 35 . . . . 23 Failed 20 | . 7 3 5 1 . . . . 3 . . . . 1 Catastrophic 3 | . . . 3 . . . . . . . . . . . Database Lockouts . | . . . . . . . . . . . . . . . Manual 34 | . 9 6 7 . . . . . 12 . . . . . Terminals 38 | . 13 8 7 . . . . . 10 . . . . . Fabricators 13 | . . . . 2 . . . . 11 . . . . . Repair Stations 25 | . 4 4 . . . . . . 6 . . . . 11 Recycling Units . | . . . . . . . . . . . . . . . Scanalyzers 22 | . . . . . . . . . 9 . . . . 13 Garrison Access 2 | . . . . . . . . . 2 . . . . . Terminal Hacks 41 | . 4 4 1 . . . 27 . 5 . . . . . Record 6 | . . . . . . . 6 . . . . . . . Part Schematic 12 | . . . . . . . 11 . 1 . . . . . Robot Schematic 7 | . . . . . . . 7 . . . . . . . Robot Analysis 3 | . 2 1 . . . . . . . . . . . . Prototype ID Bank 5 | . 1 1 . . . . 3 . . . . . . . Branch Access Points 1 | . . . . . . . . . 1 . . . . . Terminal Index 1 | . . . . . . . . . 1 . . . . . Fabricator Index 1 | . . . . . . . . . 1 . . . . . Unreport Threat 3 | . 1 1 1 . . . . . . . . . . . Locate Traps 1 | . . 1 . . . . . . . . . . . . Recall Extermination 1 | . . . . . . . . . 1 . . . . . Fabricator Hacks 8 | . . . . 1 . . . . 7 . . . . . Network Status 1 | . . . . 1 . . . . . . . . . . Load Schematic 5 | . . . . . . . . . 5 . . . . . Build 2 | . . . . . . . . . 2 . . . . . Repair Station Hacks 25 | . 4 4 . . . . . . 6 . . . . 11 Scan Component 13 | . 2 2 . . . . . . 3 . . . . 6 Repair 12 | . 2 2 . . . . . . 3 . . . . 5 Recycling Unit Hacks . | . . . . . . . . . . . . . . . Scanalyzer 21 | . . . . . . . . . 9 . . . . 12 Insert Component 9 | . . . . . . . . . 4 . . . . 5 Analyze 12 | . . . . . . . . . 5 . . . . 7 Garrison Access Hacks 1 | . . . . . . . . . 1 . . . . . Seal Access 1 | . . . . . . . . . 1 . . . . . Unauthorized Hacks 11 | . 2 1 1 . . . . . 7 . . . . . Terminals 7 | . 2 1 1 . . . . . 3 . . . . . Botnet 3 | . 1 . . . . . . . 2 . . . . . Operators 4 | . 1 1 1 . . . . . 1 . . . . . Fabricators 4 | . . . . . . . . . 4 . . . . . Prioritize 1 | . . . . . . . . . 1 . . . . . Recompile 3 | . . . . . . . . . 3 . . . . . Repair Stations . | . . . . . . . . . . . . . . . Recycling Units . | . . . . . . . . . . . . . . . Scanalyzers . | . . . . . . . . . . . . . . . Garrison Access . | . . . . . . . . . . . . . . . Data Cores Recovered 1 | . 1 . . . . . . . . . . . . . Used . | . . . . . . . . . . . . . . . Hacking Detections 15 | . 5 3 2 . . . . . 4 . . . . 1 Full Trace Events 1 | . . . 1 . . . . . . . . . . . Feedback Events . | . . . . . . . . . . . . . . . Feedback Blocked . | . . . . . . . . . . . . . . . Robot Schematics Acquired 7 | . . . . . . . 7 . . . . . . . Robots Built . | . . . . . . . . . . . . . . . Authchips . | . . . . . . . . . . . . . . . Time . | . . . . . . . . . . . . . . . Total Robot Build Rating . | . . . . . . . . . . . . . . . Part Schematics Acquired 19 | . . . . . . . 11 . 5 . . . . 3 Parts Built 2 | . . . . . . . . . 2 . . . . . Authchips 2 | . . . . . . . . . 2 . . . . . Time 79 | . . . . . . . . . 79 . . . . . Total Part Build Rating 12 | . . . . . . . . . 12 . . . . . Parts Repaired 11 | . 2 2 . . . . . . 3 . . . . 4 Time 451 | . 52 52 . . . . . . 114 . . . . 233 Parts Recycled . | . . . . . . . . . . . . . . . Recycled Matter . | . . . . . . . . . . . . . . . Retrieved Matter . | . . . . . . . . . . . . . . . Retrieved Components . | . . . . . . . . . . . . . . . Parts Scanalyzed 7 | . . . . . . . . . 4 . . . . 3 Part Schematics Acquired 7 | . . . . . . . . . 4 . . . . 3 Parts Damaged 2 | . . . . . . . . . 1 . . . . 1 Bothacking | -11 -10 -9 -8 -7 -7 -7 -7 -6 -6 -6 -6 -6 -5 -5 ------------ Run | Jun Mat Mat Mat Fac Low Low Dat Pro Fac Low Low Zio Pro Fac Used RIF Installer . | . . . . . . . . . . . . . . . Robots Hacked . | . . . . . . . . . . . . . . . Non-combat . | . . . . . . . . . . . . . . . Combat . | . . . . . . . . . . . . . . . Robot Hacks Applied . | . . . . . . . . . . . . . . . Relay Couplers Released . | . . . . . . . . . . . . . . . Fabnet Peak Effective % . | . . . . . . . . . . . . . . . Robots Rewired . | . . . . . . . . . . . . . . . Allies Hacked . | . . . . . . . . . . . . . . . Hacks Repelled . | . . . . . . . . . . . . . . . Allies | -11 -10 -9 -8 -7 -7 -7 -7 -6 -6 -6 -6 -6 -5 -5 -------- Run | Jun Mat Mat Mat Fac Low Low Dat Pro Fac Low Low Zio Pro Fac Total Allies 5 | . . . . . . . . 1 . . . 4 . . Largest Group 4 | . . . . . . . . 1 1 . . 4 4 . Highest-Rated Group 154 | . . . . . . . . 96 96 . . 154 154 . Highest-Rated Ally 96 | . . . . . . . . 96 96 . . 39 39 . Total Orders . | . . . . . . . . . . . . . . . Ally Attacks 34 | . . . . . . . . 7 12 . . . 15 . Total Damage 935 | . . . . . . . . 92 628 . . . 215 . Kills 4 | . . . . . . . . 2 1 . . . 1 . Allies Corrupted . | . . . . . . . . . . . . . . . Allies Melted . | . . . . . . . . . . . . . . . Intel | -11 -10 -9 -8 -7 -7 -7 -7 -6 -6 -6 -6 -6 -5 -5 ------- Run | Jun Mat Mat Mat Fac Low Low Dat Pro Fac Low Low Zio Pro Fac Robot Analysis Total 3 | . 2 1 . . . . . . . . . . . . Derelict Logs Recovered 9 | . . . . . 2 2 . 1 . 1 1 1 1 . Drone Launches . | . . . . . . . . . . . . . . . Drone Recoveries . | . . . . . . . . . . . . . . . Exploration | -11 -10 -9 -8 -7 -7 -7 -7 -6 -6 -6 -6 -6 -5 -5 ------------- Run | Jun Mat Mat Mat Fac Low Low Dat Pro Fac Low Low Zio Pro Fac Turns Passed 8731 | . 2046 1450 1911 299 353 113 22 238 651 235 147 478 467 321 Spaces Moved 6872 | 1 780 429 621 595 572 346 79 418 974 433 244 846 435 99 Core . | . . . . . . . . . . . . . . . Treads 1472 | . 411 429 621 11 . . . . . . . . . . Legs 370 | 1 369 . . . . . . . . . . . . . Wheels . | . . . . . . . . . . . . . . . Hover . | . . . . . . . . . . . . . . . Flight 5030 | . . . . 584 572 346 79 418 974 433 244 846 435 99 Fastest Speed 25 | 120 120 240 240 28 28 28 28 28 28 29 29 29 28 25 Average Speed 83 | 120 226 240 240 31 28 28 28 28 28 29 29 29 29 30 Slowest Speed 400 | 120 400 240 240 240 28 28 28 28 29 101 29 29 32 108 Overloaded Moves . | . . . . . . . . . . . . . . . Propulsion Burnouts . | . . . . . . . . . . . . . . . Robots Hopped 7 | . . . . . . . . . 7 . . . . . Cave-ins Triggered . | . . . . . . . . . . . . . . . Exploration Rate (%) 46 | 2 82 39 49 13 67 52 69 60 25 60 45 84 50 4 Regions Visited 14 Branch Regions 8 Pre-discovered Areas 5 | . . . . . . . 1 . . 1 . 3 . . Known Exits Taken 10 | . . . . 1 1 1 1 1 1 1 1 1 1 . Unknown Exits Taken 4 | 1 1 1 1 . . . . . . . . . . . Scrap Searched 9 | . . . . . 1 3 . . . 2 . 1 2 . Spaces Dug 229 | . . 14 40 8 18 2 . . 34 20 49 . 1 43 Terrain Destroyed 425 | . . 21 105 8 35 2 . . 61 58 68 . 24 43 Melee 44 | . . . . 8 8 2 . . 21 2 2 . 1 . Projectile 3 | . . . 3 . . . . . . . . . . . AOE 378 | . . 21 102 . 27 . . . 40 56 66 . 23 43 Terrain Rammed . | . . . . . . . . . . . . . . . Walls Destroyed . | . . . . . . . . . . . . . . . Machines Disabled . | . . . . . . . . . . . . . . . Actions | -11 -10 -9 -8 -7 -7 -7 -7 -6 -6 -6 -6 -6 -5 -5 --------- Run | Jun Mat Mat Mat Fac Low Low Dat Pro Fac Low Low Zio Pro Fac Total 9193 | . 952 694 856 683 741 357 78 537 1260 532 307 1068 769 359 Wait 1623 | . 71 108 33 31 155 8 . 118 207 93 55 191 328 225 Move 6845 | . 779 428 620 594 571 345 78 417 960 432 243 845 434 99 Hop 6 | . . . . . . . . . 6 . . . . . Pick Up 84 | . 17 27 19 4 1 . . . 6 . . 9 . 1 Fast Attach 37 | . 6 5 4 2 . . . . 10 . . 3 . 7 Attach 31 | . 3 4 4 11 1 . . . 2 . . 1 1 4 Detach 2 | . . . . . . . . . . . . 1 . 1 Swap 68 | . 4 14 25 . . 1 . 2 7 2 2 7 2 2 Drop 109 | . 10 22 28 24 . 1 . . 11 . . 7 1 5 Fire 265 | . 48 83 117 . 3 . . . 2 3 4 . 2 3 Melee 87 | . . . . 17 10 2 . . 36 2 3 4 1 12 Ram . | . . . . . . . . . . . . . . . Kick 6 | . 6 . . . . . . . . . . . . . Crush 17 | . 8 3 6 . . . . . . . . . . . Escape Stasis 13 | . . . . . . . . . 13 . . . . . Rewire . | . . . . . . . . . . . . . . . Trap . | . . . . . . . . . . . . . . . Miscellaneous . | . . . . . . . . . . . . . . . Route ------- -11/Junkyard -10/Materials (discovered 3 exits: *Mat x2 / [*Min]) -9/Materials -8/Materials (discovered 4 exits: *Fac x3 / [*Sto]) -7/Factory -7/Lower Caves -7/Lower Caves -7/Data Miner -6/Proximity Caves -6/Factory (discovered 5 exits: *Fac x3 / *Low x2) -6/Lower Caves -6/Lower Caves (discovered 2 exits: *Fac / *Zio) -6/Zion (discovered 2 exits: Dee / *Pro) -5/Proximity Caves -5/Factory (discovered 1 exit: *Fac) History --------- Turn | Location | Event 1 | -11/Junkyard | Discovered new exit (range 0) 1 | -11/Junkyard | Entered Materials 157 | -10/Materials | Discovered new exit (range 13) 312 | -10/Materials | Build established: Mutant 399 | -10/Materials | Discovered new exit (range 11) 1172 | -10/Materials | Discovered new exit (range 4) 1752 | -10/Materials | Repaired Lgt. Treads 1779 | -10/Materials | Repaired Beam Cannon 2047 | -10/Materials | Entered another Materials area 2047 | -9/Materials | Evolved 2 slots: Propulsion x1, Utility x1 2255 | -9/Materials | Repaired Lgt. Treads 2282 | -9/Materials | Repaired Lgt. Assault Rifle 2351 | -9/Materials | Build established: Scavenger-Mutant 3187 | -9/Materials | Discovered new exit (range 13) 3497 | -9/Materials | Entered another Materials area 3497 | -8/Materials | Evolved 2 slots: Propulsion x1, Utility x1 3839 | -8/Materials | Discovered new exit (range 15) 3981 | -8/Materials | Destroyed 7 combat bots 4489 | -8/Materials | Discovered new exit (range 16) 4648 | -8/Materials | Discovered new exit (range 14) 5245 | -8/Materials | Discovered new exit (range 15) 5408 | -8/Materials | Entered Factory 5408 | -7/Factory | Evolved 2 slots: Utility x2 5641 | -7/Factory | Discovered new exit (range 8) 5644 | -7/Factory | Identified exit to Lower Caves 5707 | -7/Factory | Entered Lower Caves 5732 | -7/Lower Caves | Build established: Hacker-Sprinter 5785 | -7/Lower Caves | Encountered a Warlord checkpoint 5789 | -7/Lower Caves | Learned location of 1 exit from Factory 5926 | -7/Lower Caves | Identified exit to Lower Caves 6049 | -7/Lower Caves | Spotted B-75 Beast 6060 | -7/Lower Caves | Entered another Lower Caves area 6136 | -7/Lower Caves | Learned 8 Factory zone layouts 6163 | -7/Lower Caves | Discovered new exit (range 15) 6167 | -7/Lower Caves | Identified exit to Data Miner 6173 | -7/Lower Caves | Entered Data Miner 6173 | -7/Data Miner | Discovered new exit (range 6) 6179 | -7/Data Miner | Met Data Miner 6184 | -7/Data Miner | Learned location of Section 7 (-2) 6184 | -7/Data Miner | Acquired the access code to Warlord's prototype stash 6188 | -7/Data Miner | Received God Mode back door access code from Data Miner 6195 | -7/Data Miner | Identified exit to Proximity Caves 6195 | -7/Data Miner | Entered Proximity Caves 6258 | -6/Proximity Caves | Spotted B-75 Beast 6260 | -6/Proximity Caves | Escorted by Enhanced Grunt 6352 | -6/Proximity Caves | Learned Factory emergency access door positions 6378 | -6/Proximity Caves | Discovered new exit (range 7) 6379 | -6/Proximity Caves | Identified exit to Factory 6433 | -6/Proximity Caves | Entered Factory 6433 | -6/Factory | Accompanied by 1 ally 6433 | -6/Factory | Evolved 2 slots: Utility x2 6434 | -6/Factory | Identified exit to Lower Caves 6435 | -6/Factory | Identified exit to Factory 6435 | -6/Factory | Spotted B-75 Beast 6670 | -6/Factory | Fabricated Adv. Hacking Suite? 6699 | -6/Factory | Discovered exit to Factory (range 16) 6715 | -6/Factory | Repaired Imp. Utility Shielding? 6803 | -6/Factory | Repaired Hrd. Light Armor Plating 6810 | -6/Factory | Incoming investigation squad redirected 6849 | -6/Factory | Repaired Power Maul 7020 | -6/Factory | Discovered exit to Factory (range 6) 7069 | -6/Factory | Fabricated Adv. System Shield? 7084 | -6/Factory | Entered Lower Caves 7091 | -6/Lower Caves | Encountered a Warlord checkpoint 7197 | -6/Lower Caves | Learned location of Extension (-4) 7314 | -6/Lower Caves | Discovered new exit (range 14) 7319 | -6/Lower Caves | Identified exit to Lower Caves 7319 | -6/Lower Caves | Entered another Lower Caves area 7320 | -6/Lower Caves | Encountered a Warlord checkpoint 7375 | -6/Lower Caves | Discovered exit to Factory (range 10) 7386 | -6/Lower Caves | Learned Factory terminal intel 7464 | -6/Lower Caves | Discovered new exit (range 6) 7465 | -6/Lower Caves | Identified exit to Zion 7466 | -6/Lower Caves | Entered Zion 7480 | -6/Zion | Given A8's code to call for help 7484 | -6/Zion | System corruption cleaned by Quarantine Array 7492 | -6/Zion | Discovered new exit (range 11) 7526 | -6/Zion | Given the Hacking Drone Bay 7530 | -6/Zion | Found Prototype Device 7532 | -6/Zion | Identified Hacking Drone Bay 7577 | -6/Zion | Found CR-A16's Pointy Stick 7602 | -6/Zion | Learned location of Quarantine (-2) 7606 | -6/Zion | Learned location of Warlord (-4) 7612 | -6/Zion | Identified exit to Deep Caves 7637 | -6/Zion | Acquired unknown access codes intercepted by a Zionite 7640 | -6/Zion | Found Prototype Processor 7642 | -6/Zion | Found Prototype Hackware 7643 | -6/Zion | Found Prototype Processor 7645 | -6/Zion | Identified Exp. Hacking Suite 7647 | -6/Zion | Found Prototype Processor 7648 | -6/Zion | Identified Exp. Melee Analysis Suite (x2) 7653 | -6/Zion | Found Prototype Processor 7655 | -6/Zion | Found Prototype Processor 7661 | -6/Zion | Found Prototype Processor 7696 | -6/Zion | Imprinted 7698 | -6/Zion | Declared Zion's savior 7753 | -6/Zion | Identified exit to Proximity Caves 7944 | -6/Zion | Entered Proximity Caves 7944 | -5/Proximity Caves | Accompanied by 4 allies 8090 | -5/Proximity Caves | Received a Behemoth hack from an annoying Tinkerer 8254 | -5/Proximity Caves | Attracted the attention of an 0b10 checkpoint 8408 | -5/Proximity Caves | Discovered exit to Factory (range 10) 8411 | -5/Proximity Caves | Entered Factory 8411 | -5/Factory | Evolved 2 slots: Propulsion x1, Utility x1 8412 | -5/Factory | Loaded intel: 25 terminal locations 8433 | -5/Factory | Discovered new exit (range 6) 8435 | -5/Factory | Lost 3 parts (1p2n) 8439 | -5/Factory | Identified exit to Factory 8456 | -5/Factory | Identified Exp. Signal Interpreter (x2) 8456 | -5/Factory | Identified Exp. Target Analyzer 8456 | -5/Factory | Identified Exp. Targeting Computer 8519 | -5/Factory | Repaired Adv. Sensor Array 8571 | -5/Factory | Repaired Imp. Flight Unit 8605 | -5/Factory | Repaired VTOL Module 8656 | -5/Factory | Repaired Nuclear Pulse Thruster 8732 | -5/Factory | Self-destructed Last Messages --------------- 08656_ Acquired Nuclear Pulse Thruster. 08658_ Connecting with Repair Station... >>Scan(Lrn. Missile Launcher) Scanning Lrn. Missile Launcher... Ready to Repair: Lrn. Missile Launcher Rating: 5 Time: 50 >>Repair Repairing Lrn. Missile Launcher... ETC: 50 08661_ ALERT: Rogue bot located, Programmers report to Factory Zone 3J. 08702_ Repair Station disabled. 08707_ P-70 Sage destroyed. 08719_ P-70 Sage suffers critical hit (Impale). 08724_ VTOL Module destroyed. 08725_ System corrupted: Heat flow error (+203). 08726_ Destroyed Imp. Remote Datajack. 08727_ VTOL Module destroyed. 08730_ Hrd. Light Armor Plating destroyed. Map ----- +----------------------------------------------------+ | | | | | | | | | | | | | | | | | | | | | | | | | | | | | | | | | | | | | | | | | | | ????????????????????????##############???????????? | | ????????????????????????#!%=! | #???????????? | | ????????????????????????#![*" """ #???????????? | | ????????????????????????# "R" """ #???????#???? | | ????????????????????????#@ "" """ ########? " | | ????????????????????????#p # ## " | | ????????????????????????#######+###### ## " | | ?????????????????????????????# + ## | | ?????????????????????????????# ##### ## " | | ?????????????????????????? #???# ## " | | ?????????????????????????##### #???# ## " | | ?????????????????????????????# #???####+#### | | ????????????????????????????# ##### ## | | ????????????????????????????# ! ###### | | ??????????????????k?????????# | | ????????????????????????????# ###### | | ????????????????????????????# ##### #????# | | ????????????????????????????#######???### ###????# | | ????????????????????????????????????#####+######## | | ????????????????????????????????????#! # | | ????????????????????????????????????# # | | ????????????????????????????????????# # | | ????????????????????????????????????# # | | ????????????????????????????????????# # | | ????????????????????????????????????# + | | ????????????????????????????????????# # | | ????????????????T???????????????????# # | | ????????????????????????????????????# # | | ????????????????????????????????????# # | +----------------------------------------------------+ Best States ------------- Heat Dissipation 48 Energy Generation 15 Energy Capacity 265 Matter Stores 300 Matter Capacity 300 Sight Range 16 Robot Scan Range 16 Terrain Scan Density 10 ECM Strength 2 Armor Coverage 300 Utility Shielding 66 Evasion (%) 65 Targeting Accuracy 8 Recoil Reduction 4 Offensive Hacking 44 Defensive Hacking 14 Authchip Count 1 Item Schematics ----------------- Combat Drone Bay | -7/Data Miner | Free Lgt. Regenerative Plating | -7/Data Miner | Free Cld. Cesium-ion Thruster | -7/Data Miner | Free Gravity Neutralizer | -7/Data Miner | Free Antigrav System | -7/Data Miner | Free Adv. Hacking Suite | -7/Data Miner | Free Force Rifle | -7/Data Miner | Free Wave Gun | -7/Data Miner | Free Variable Charge Gun | -7/Data Miner | Free Adv. Surge Thruster | -7/Data Miner | Free Imp. Cloaking Device | -7/Data Miner | Free Adv. System Shield | -6/Factory | Hacked Lrn. Missile Launcher | -6/Factory | Scanalyzed Med. Storage Unit | -6/Factory | Scanalyzed Lgt. Nuclear Core | -6/Factory | Scanalyzed Xenon Bombardment Thruster | -6/Factory | Scanalyzed Exp. Targeting Computer | -5/Factory | Scanalyzed Exp. Target Analyzer | -5/Factory | Scanalyzed Exp. Signal Interpreter | -5/Factory | Scanalyzed Robot Schematics ------------------ B-48 Gladiator | -7/Data Miner | Free Y-54 Guardian | -7/Data Miner | Free O-24 Administrator | -7/Data Miner | Free D-53 Grenadier | -7/Data Miner | Free L-41 Fighter | -7/Data Miner | Free P-60 Hacker | -7/Data Miner | Free H-66 Slayer | -7/Data Miner | Free Fabricated ------------ Adv. Hacking Suite | x1 | -6/Factory | Authchip Adv. System Shield | x1 | -6/Factory | Authchip Alien Tech Used ----------------- None Achievements -------------- None Challenges ------------ None Game ------ Seed MyomerDisposableCharge Manual? 0 Play Time 00:52:38 Cumulative 840.9 hours Start 2023.03.16 @ 13:20:47 End 2023.03.18 @ 11:51:18 Sessions 3 Manual Loads 0 Difficulty Rogue Special Mode None Game No. 1263 Rogue 1263 Adventurer 0 Explorer 0 Win Type - Total 80 Types 47/1/13/14/4/0/0/1/0 Lore% 92 Gallery% 92 Achievement% 85 Wizard Run 0 Options --------- ASCII 1 Keyboard 0 Movement Numpad Keybinds 0 Fullscreen 0 Font 14/SmallcapsGlow Map View 76x50 Tactical HUD 1 Map Filters NONE Filters NONE Steam 1 RUN: 54a3996e-3803-4f75-bfcc-2019acac6f33